Cogmind - Beta 15 @@@ ROGUE MODE // 2025.06.22 @ 17:47:36 Player: Waste Result: Destroyed by KD-O83(R) with Subdweller Machine Gun Performance ------------- Evolutions (0) 0 Regions Visited (2) 400 Robots Destroyed (14) 70 Value Destroyed (537) 537 Prototype IDs (0) 0 Alien Tech Used (0) 0 Bonus (0) 0 TOTAL SCORE: 1007 Bonus ------- None Cogmind --------- Core Integrity 0/250 Matter 290/300 Energy 250/250 System Corruption 2% Temperature Cool (1) Movement Rolling (105) Ox1 Location -10/Subcaves Parts ------- > --- POWER (1) -------- Ion Engine > --- PROPULSION (2) --- Wheel Compact Wheel > --- UTILITY (2) ------ Large Storage Unit Makeshift Light Armor Plating > --- WEAPON (2) ------- Subdweller Laser Subdweller Machine Gun > --- INVENTORY (15) --- Subdweller Power Source Spiked Treads Cooling System Core Shielding Core Shielding Core Shielding Small Laser Subdweller Laser Particle Cannon Particle Cannon Autogun Autogun Subdweller Machine Gun Subdweller Machine Gun Peak State ------------ > --- POWER ------------ Ion Engine > --- PROPULSION ------- Light Treads Wheel > --- UTILITY ---------- Large Storage Unit Makeshift Light Armor Plating > --- WEAPON ----------- Heavy Riot Gun Particle Cannon > --- INVENTORY -------- Compact Wheel Cooling System Core Shielding Core Shielding Core Shielding Small Laser Subdweller Laser Particle Cannon Particle Cannon Autogun Autogun Subdweller Machine Gun Subdweller Machine Gun [Rating: 16] Favorites ----------- Power Ion Engine Engine Ion Engine Propulsion Light Treads Treads Light Treads Leg Aluminum Leg Wheel Wheel Utility Large Storage Unit Storage Large Storage Unit Processor Improved Targeting Computer Protection Makeshift Light Armor Plating Weapon EM Pulse Gun Energy Gun EM Pulse Gun Energy Cannon Particle Cannon Ballistic Gun Autogun Build | -11 -10 -10 ------- Run | Yrd Mat Sub Slots Evolved . | . . . Power . | . . . Propulsion . | . . . Utility . | . . . Weapon . | . . . Parts Attached 17 | 1 8 8 Power 1 | . . 1 Engine 1 | . . 1 Core . | . . . Reactor . | . . . Propulsion 4 | . 2 2 Treads 2 | . 2 . Leg . | . . . Wheel 2 | . . 2 Hover . | . . . Flight . | . . . Utility 4 | . 3 1 Device . | . . . Storage 1 | . 1 . Processor 1 | . 1 . Hackware . | . . . Protection 2 | . 1 1 Artifact . | . . . Weapon 8 | 1 3 4 Energy Gun 4 | 1 1 2 Energy Cannon 1 | . . 1 Ballistic Gun 3 | . 2 1 Ballistic Cannon . | . . . Launcher . | . . . Special Weapon . | . . . Impact Weapon . | . . . Slashing Weapon . | . . . Piercing Weapon . | . . . Special Melee Weapon . | . . . Unidentified Prototypes . | . . . Parts Lost 7 | . . 7 Power 1 | . . 1 Propulsion 2 | . . 2 Utility . | . . . Weapon 4 | . . 4 Highest Loss Streak 4 | . . 4 To Critical Strikes . | . . . Average Backups 12 | 6 10 13 Power . | 1 1 . Propulsion 1 | 4 3 1 Utility 3 | . 3 4 Weapon 6 | 1 3 7 Tool/Special . | . . . Unused Backups 14 | . 2 12 Power 1 | . . 1 Propulsion 1 | . . 1 Utility 6 | . 2 4 Weapon 6 | . . 6 Tool/Special . | . . . Average Slot Usage (%) 98 | . 97 99 Engine 14 | . 14 14 Treads 9 | . 12 7 Leg 5 | . 15 . Wheel 12 | . . 19 Storage 14 | . 14 14 Processor 2 | . 6 . Protection 11 | . 5 14 Energy Gun 14 | . 11 15 Energy Cannon 4 | . . 6 Ballistic Gun 9 | . 16 5 Peak Build Rating 16 | 6 11 16 Average Rating 12 | 6 9 13 On Entrance 6 | 6 6 8 Naked Turns . | . . . Heaviest Build 37 | 12 30 37 Greatest Support 40 | 20 40 40 Greatest Overweight (x) 3 | . 2 3 Average Overweight (x) 1 | . . 1 Largest Inventory Capacity 15 | 8 15 15 Average Capacity 14 | 8 14 15 Most Carried 15 | 6 14 15 Average Carried 12 | 6 10 13 Final Capacity 15 | 8 15 15 Final Carried 14 | 6 13 14 Class Distribution -------------------- 100% | Mutant Dominant Class ---------------- Mutant | -10/Materials Mutant | -10/Subcaves Resources | -11 -10 -10 ----------- Run | Yrd Mat Sub Matter Collected 481 | 200 22 259 Remotely . | . . . Salvage Created 624 | . 99 525 Parts 42 | . 6 36 Haulers Intercepted . | . . . Recyclers Shooed . | . . . Parts Field Recycled . | . . . Retrieved Matter . | . . . Parts Self-Destructed . | . . . Prevented . | . . . Kills | -11 -10 -10 ------- Run | Yrd Mat Sub Combat Hostiles Destroyed 13 | . 2 11 Guns 9 | . 2 7 Cannons 3 | . . 3 Classes Destroyed 3 | . 2 1 Watcher 1 | . 1 . Grunt 2 | . 2 . Subdweller 11 | . . 11 Best Kill Streak 2 | . 2 2 Combat Bots Only 2 | . 2 2 Max Kills in Single Turn 1 | . 1 1 Gunslinging . | . . . Exploded . | . . . Melee . | . . . Uniques/NPCs Destroyed . | . . . Combat | -11 -10 -10 -------- Run | Yrd Mat Sub Hostile Shots Fired 72 | . 2 70 Missed 21 | . 1 20 Hits 51 | . 1 50 Projectile 51 | . 1 50 Critical Strikes 1 | . . 1 Damage Taken 1279 | . 16 1263 Core 256 | . . 256 Absorbed by Shields . | . . . Redirected to Shielding 3 | . . 3 Core Remaining (%) 100 | 100 . . Volleys Fired 58 | . 4 54 Largest 2 | . 2 2 Hottest 128 | . 80 128 Shots Fired 115 | . 8 107 Gun 89 | . 8 81 Cannon 26 | . . 26 Launcher . | . . . Special . | . . . Kinetic 20 | . 6 14 Thermal 58 | . . 58 Explosive . | . . . Electromagnetic 37 | . 2 35 Robot Hit Streak 18 | . 6 18 Robot Miss Streak 2 | . . 2 Penetration Max . | . . . Secondary Targets . | . . . Shots Hit Robots 80 | . 6 74 Core Hits 27 | . 4 23 Critical Kills . | . . . Critical Parts Destroyed 2 | . . 2 Critical Strikes 2 | . . 2 Destroy 2 | . . 2 Melee Attacks . | . . . Impact . | . . . Slashing . | . . . Piercing . | . . . Sneak Attacks . | . . . Combat Hostiles . | . . . Follow-up Attacks . | . . . Damage Inflicted 1414 | . 100 1314 Guns 1063 | . 100 963 Cannons 347 | . . 347 Explosions . | . . . Melee . | . . . Ramming 4 | . . 4 Kinetic 265 | . 78 187 Thermal 849 | . . 849 Explosive . | . . . Electromagnetic 296 | . 22 274 Impact . | . . . Slashing . | . . . Piercing . | . . . Highest Corruption 2 | . 2 2 Average Corruption 2 | . 2 2 Corruption Purged . | . . . Corruption Blocked . | . . . Effects 24 | . 2 22 Message Errors 7 | . 1 6 Matter Fused 7 | . . 7 Heat Flow Errors 6 | . 1 5 Data Loss (minor) 1 | . . 1 Misfires 2 | . . 2 Weapon Failures 1 | . . 1 Overload Shots . | . . . Overflow Damage . | . . . Projectiles . | . . . Explosions . | . . . Melee . | . . . Knockbacks . | . . . Impact . | . . . Kinetic . | . . . Secondary . | . . . Self-Inflicted Damage 2 | . . 2 Shots . | . . . Rammed 1 | . . 1 Targets Rammed 1 | . . 1 Kicked . | . . . Crushed . | . . . Highest Temperature 250 | . 105 250 Average Temperature 59 | . 28 63 Received Heat Transfer 440 | . 9 431 Siege Activations . | . . . Martial Activations . | . . . Shielding Activations . | . . . Robots Disrupted . | . . . Combat Hostiles . | . . . Robots Corrupted 1 | . . 1 Combat Hostiles 1 | . . 1 Parts Fried 2 | . . 2 Impact Corruptions . | . . . Robots Melted . | . . . Combat Hostiles . | . . . Parts Melted 2 | . . 2 Heat Transferred 1254 | . . 1254 Parts Sabotaged . | . . . Parts Stolen . | . . . Parts Stripped . | . . . Power Chain Reactions . | . . . Alert | -11 -10 -10 ------- Run | Yrd Mat Sub Maximum Alert Level . | . . . Low Security (%) 100 | 100 100 . Level 1 . | . . . Level 2 . | . . . Level 3 . | . . . Level 4 . | . . . Level 5 . | . . . High Security . | . . . Max Security . | . . . Peak Influence 42 | . 42 . Initial . | . . . Average 3 | . 3 . Influence Increases 63 | . 63 . Destroy 0b10 Robot/C 40 | . 40 . Destroy 0b10 Robot/NC 5 | . 5 . Destroy Leader 12 | . 12 . Successful Hack 6 | . 6 . Influence Decreases 63 | . 53 10 Entered New Map 6 | . . 6 Time Decay 57 | . 53 4 Squads Dispatched . | . . . Investigation . | . . . Extermination . | . . . Reinforcement . | . . . Assault . | . . . Garrison . | . . . Intercept . | . . . Searches Triggered . | . . . Construction Impeded . | . . . Haulers Reinforced . | . . . Active Scanning Responses . | . . . Cargo Convoy Interrupts . | . . . Stealth | -11 -10 -10 --------- Run | Yrd Mat Sub Distress Signals . | . . . Communications Jammed . | . . . Distress Signals . | . . . Times Spotted 18 | . 4 14 Peak Tracking Total 3 | . 1 3 Tactical Retreats 1 | . . 1 Traps | -11 -10 -10 ------- Run | Yrd Mat Sub Traps Triggered 5 | . 2 3 Indirectly . | . . . Trap Hack Attempts . | . . . Triggered . | . . . Disarmed . | . . . Reprogrammed . | . . . Reused . | . . . Traps Extracted . | . . . Installed . | . . . Triggered . | . . . Machines | -11 -10 -10 ---------- Run | Yrd Mat Sub Machines Disabled . | . . . Max in Single Turn . | . . . Machines Repaired . | . . . Machines Dismantled . | . . . Machines Sabotaged . | . . . Overloaded Fab Kills . | . . . Hacking | -11 -10 -10 --------- Run | Yrd Mat Sub Machines Accessed 3 | . 3 . Terminals 3 | . 3 . Fabricators . | . . . Repair Stations . | . . . Recycling Units . | . . . Scanalyzers . | . . . Garrison Access . | . . . Total Hacks 5 | . 5 . Successful 1 | . 1 . Failed 3 | . 3 . Catastrophic 1 | . 1 . Database Lockouts 1 | . 1 . Manual 6 | . 6 . Terminals 5 | . 5 . Fabricators . | . . . Repair Stations . | . . . Recycling Units . | . . . Scanalyzers . | . . . Garrison Access . | . . . Terminal Hacks 1 | . 1 . Robot Analysis 1 | . 1 . Fabricator Hacks . | . . . Repair Station Hacks . | . . . Recycling Unit Hacks . | . . . Scanalyzer . | . . . Garrison Access Hacks . | . . . Unauthorized Hacks . | . . . Terminals . | . . . Fabricators . | . . . Repair Stations . | . . . Recycling Units . | . . . Scanalyzers . | . . . Garrison Access . | . . . Data Cores Recovered . | . . . Used . | . . . Hacking Detections 3 | . 3 . Full Trace Events . | . . . Feedback Events . | . . . Feedback Blocked . | . . . Robot Schematics Acquired . | . . . Robots Built . | . . . Authchips . | . . . Time . | . . . Total Robot Build Rating . | . . . Part Schematics Acquired . | . . . Parts Built . | . . . Authchips . | . . . Time . | . . . Total Part Build Rating . | . . . Parts Repaired . | . . . Time . | . . . Parts Recycled . | . . . Recycled Matter . | . . . Retrieved Matter . | . . . Retrieved Components . | . . . Parts Scanalyzed . | . . . Part Schematics Acquired . | . . . Parts Damaged . | . . . Bothacking | -11 -10 -10 ------------ Run | Yrd Mat Sub Used RIF Installer . | . . . Robots Hacked . | . . . Non-combat . | . . . Combat . | . . . Robot Hacks Applied . | . . . Relay Couplers Released . | . . . Fabnet Peak Effective % . | . . . Robots Rewired . | . . . Allies Hacked . | . . . Hacks Repelled . | . . . Allies | -11 -10 -10 -------- Run | Yrd Mat Sub Total Allies . | . . . Largest Group . | . . . Highest-Rated Group . | . . . Highest-Rated Ally . | . . . Total Orders . | . . . Ally Attacks . | . . . Total Damage . | . . . Kills . | . . . Allies Corrupted . | . . . Allies Melted . | . . . Intel | -11 -10 -10 ------- Run | Yrd Mat Sub Active Infowar (turns) . | . . . Robot Analysis Total 1 | . 1 . Derelict Logs Recovered 2 | . . 2 Drone Launches . | . . . Drone Recoveries . | . . . Exploration | -11 -10 -10 ------------- Run | Yrd Mat Sub Turns Passed 1931 | 2 656 1273 Spaces Moved 1213 | 1 345 867 Core . | . . . Treads 225 | . 150 75 Legs 196 | 1 195 . Wheels 792 | . . 792 Hover . | . . . Flight . | . . . Fastest Speed 105 | 120 120 105 Average Speed 130 | 120 165 117 Slowest Speed 260 | 120 260 240 Overloaded Moves . | . . . Propulsion Burnouts . | . . . Robots Hopped . | . . . Potential Cave-ins . | . . . Cave-ins Triggered . | . . . Exploration Rate (%) 37 | 2 56 53 Regions Visited 2 Branch Regions 1 Pre-discovered Areas . | . . . Known Exits Taken . | . . . Unknown Exits Taken 2 | 1 1 . Scrap Searched 9 | . . 9 Spaces Dug . | . . . Terrain Destroyed . | . . . Melee . | . . . Projectile . | . . . AOE . | . . . Terrain Rammed . | . . . Walls Destroyed . | . . . Machines Disabled . | . . . Actions | -11 -10 -10 --------- Run | Yrd Mat Sub Total 1436 | 1 423 1012 Wait 128 | . 52 76 Move 1211 | . 344 867 Hop . | . . . Pick Up 16 | . 10 6 Fast Attach 4 | . 2 2 Attach 9 | . 4 5 Detach 1 | . 1 . Swap 6 | 1 4 1 Drop 2 | . 2 . Fire 58 | . 4 54 Melee . | . . . Ram 1 | . . 1 Kick . | . . . Crush . | . . . Escape Stasis . | . . . Rewire . | . . . Trap . | . . . Miscellaneous . | . . . Route ------- -11/Scrapyard -10/Materials (discovered 4 exits: [*Mat x2] / [*Min] / [*Sub]) -10/Subcaves (discovered 1 exit: [*Mat]) History --------- Turn | Location | Event 3 | -11/Scrapyard | Discovered new exit (range 0) 3 | -11/Scrapyard | Entered Materials 151 | -10/Materials | Discovered new exit (range 4) 303 | -10/Materials | Build established: Mutant 372 | -10/Materials | Discovered new exit (range 16) 388 | -10/Materials | Central database locked down 437 | -10/Materials | Discovered new exit (range 15) 636 | -10/Materials | Discovered new exit (range 5) 659 | -10/Materials | Entered Subcaves 660 | -10/Subcaves | Approached by a straggling Scientist 686 | -10/Subcaves | Discovered new exit (range 8) 793 | -10/Subcaves | Disturbed a concealed Subdweller 858 | -10/Subcaves | Lost 4 parts (1p1n2w) 955 | -10/Subcaves | Disturbed a concealed Subdweller 1174 | -10/Subcaves | Learned Materials emergency access door positions 1350 | -10/Subcaves | Core integrity fell below 50% 1441 | -10/Subcaves | Core integrity fell below 20% 1662 | -10/Subcaves | A swath of the cavern ceiling suddenly collapsed 1932 | -10/Subcaves | Destroyed by KD-O83(R) with Subdweller Machine Gun Last Messages --------------- 01448_ System corrupted: Matter fused (-10). 01448_ G0-TQG(R) destroyed. 01451_ Acquired 30 matter. 01469_ SYSN/SG10OCSSR:ZALLPRCN 01515_ System corrupted: Matter fused (-5). 01569_ EA-DV6(u) tweaks Twisted Machinery. 01636_ System corrupted: Heat flow error (+181). 01650_ 09-WSN(u) builds Twisted Machinery. A swath of the cavern ceiling suddenly collapses. 01690_ 09-WSN(u) builds Twisted Machinery. 01814_ System corrupted: FCS attempts to trigger Sub. Laser. 01814_ System corrupted: Sub. Laser misfires. 01832_ System corrupted: Component data lost. 01838_ BO-K2M(R) suffers critical hit (Destroy). 01838_ Destroyed Sub. Power Source. 01844_ BO-K2M(R) destroyed. 01847_ Acquired 18 matter. 01894_ EA-DV6(u) tweaks Twisted Machinery. 01908_ 2MG6%R1NGQL8JHSQ0KOBL:#QGWP6 01931_ KD-O83(R) affixes Scrap Shield Fragment to Scrap Shield. Map ----- +----------------------------------------------------+ | ???????????????? #????# ??#### | | ????????????????? #??????# ## ### | | ??????????????????????????# # ### ##### | | ??????????????????????????# ## #?# ###?# | | ??????????????????????????# #?# #?? | | ??????????????????????????###### ### ##?? | | ???????????????????????????????## #####?? | | ??????????????????????#####????## #?# ##? | | ?????????????????????## ###### ## ## #? | | ???????????????????### ######### #" | | ??????????????????## #???????# "" | | ????????????? ???## #??###### "? | | ?????????????? ### ##??# #?? | | ?????????????? ##??## #??? | | ?????????????? ##?### #??? | | ????????????????## ##?# #??? | | ?????????????????## #??# ##### | | ????????????# #### ###?## "#"# | | ???????????? ## ## &##??## """ | | ???????????????"""""" [%##??# "" | | ???????????????#"""" R& #### # ""## | | ???????????????"""""# # "# "##? | | ???????????????#"""######R # "# "#?? | | ???????????????# ""?????# ### " ##? | | ??????????????? "??????# ##?### #""" ## | | ????????????????????????#@ #????## ####"" # | | ????????????????????????# #?????# #?# "" # | | ????????????????????????# #????## ##?# "" ## | | ????????????????????????# #?????#####??##""###? | | ????????????????????????######?????????????###???? | | ?????????????????????????????????????????????????? | | ?????????????????????????????????????????????????? | | ?????????????????????????????????????????????????? | | ?????????????????????????????????????????????????? | | ?????????????????????????????????????????????????? | | ?????????????????????????????????????????????????? | | ?????????????????????????????????????????????????? | | ?????????????????????????????????????????????????? | | ?????????????????????????????????????????????????? | | ?????????????????????????????????????????????????? | | ?????????????????????????????????????????????????? | | ?????????????????????????????????????????????????? | | ?????????????????????????????????????????????????? | | ?????????????????????????????????????????????????? | | | | | | | | | | | | | +----------------------------------------------------+ Best States ------------- Heat Dissipation 25 Energy Generation 10 Energy Capacity 250 Matter Stores 300 Matter Capacity 300 Sight Range 16 Terrain Scan Density 10 Armor Coverage 100 Core Shielding 20 Evasion (%) 55 Targeting Accuracy 6 Recoil Reduction 2 Item Schematics ----------------- None Robot Schematics ------------------ None Fabricated ------------ Nothing Repaired ---------- Nothing Alien Tech Used ----------------- None Achievements -------------- None Challenges ------------ None Game ------ Seed ProtonHackingShotgun Manual? 0 Play Time 00:12:42 Cumulative 383.3 hours Start 2025.06.22 @ 17:40:09 End 2025.06.22 @ 17:47:36 Sessions 1 Manual Loads 0 Difficulty Rogue Special Mode None Game No. 480 Rogue 480 Adventurer 0 Explorer 0 Win Type - Total 30 Types 14/1/9/1/1/1/0/1/1/1 Lore% 86 Gallery% 78 Achievement% 77 Wizard Run 0 Options --------- Layout 0 ASCII 0 Keyboard 0 Movement Numpad Keybinds 0 Fullscreen 1 Font 18/SmallcapsGlow Map View 76x50 Zoom Use 0% Tactical HUD 1 Map Filters NONE Filters NONE Steam 1 RUN: 6c427606-e4df-4699-9dbe-c871f05eaa74